{"text_format":"1","workbook":"xlsx","n_sheets":2,"sheets":["DtAr","Расч"],"not_rendered":{"charts":0,"images":25,"macros":1,"external_links":0,"defined_names":14,"comments":0,"pivot_tables":0},"unopened":[],"bounds":{"document_bytes":16777216,"sheet_cells":100000,"rows_first":2000,"rows_last":500,"rows_between":2000,"halvings":0,"cell_chars":16384,"cell_head_chars":4096},"cells_cut":0,"cells_raw":0,"read":"whole","date_system":"1900"}

{"sheet":"DtAr","index":0,"n_rows":229,"n_cols":20,"rows_kept":229,"cut":false,"hidden":false,"merged":[[4,6,4,7],[9,15,10,22],[1,15,3,18]]}
[]
[]
[]
[null,null,null,"Против НАЕЗДНИКОВ","Пехотинцы"]
[null,null,null,"Отряды","сила","здоров","лид,маст,прев",null,"сила прот.","сила бон.","всего сила","здор.бон.","всего здор.","вид войск"]
[null,null,null,"Ст1","Ст2","Ст3","Ст4","Ст5","Ст6","Ст7","Ст8","Ст9","Ст10","Ст11"]
[null,1,null,"не выбрано","сила база","здоров","л, м, п","значение","наездн.","сила бон.","сила","здор.бон.","здоровье","вид"]
[null,2,null,"копейщик 4",290,870,"л",1,132,{"$f":"Расч!$AS$24","v":0},{"$f":"$E8+$E8*($I8+$J8)%","v":672.8},{"$f":"Расч!$AR$24","v":0},{"$f":"$F8+$F8*$L8%","v":870},"гвардеец"]
[null,3,null,"мечник 4",290,870,"л",1,66,{"$f":"Расч!$AS$25","v":0},481.4,{"$f":"Расч!$AR$25","v":0},870,"специалист"]
[null,4,null,"копейщик 3",160,480,"л",1,88,{"$f":"Расч!$AS$24","v":0},300.8,{"$f":"Расч!$AR$24","v":0},480,"гвардеец"]
[null,5,null,"мечник 3",160,480,"л",1,44,{"$f":"Расч!$AS$25","v":0},230.4,{"$f":"Расч!$AR$25","v":0},480,"специалист"]
[null,6,null,"копейщик 2",90,270,"л",1,59,{"$f":"Расч!$AS$24","v":0},143.1,{"$f":"Расч!$AR$24","v":0},270,"гвардеец",null,"Против НАЕЗДНИКОВ"]
[null,7,null,"мечник 2",90,270,"л",1,29,{"$f":"Расч!$AS$25","v":0},116.1,{"$f":"Расч!$AR$25","v":0},270,"специалист",null,"Пехотинцы"]
[null,8,null,"копейщик 1",50,150,"л",1,39,{"$f":"Расч!$AS$24","v":0},69.5,{"$f":"Расч!$AR$24","v":0},150,"гвардеец"]
[null,9,null,"мечник 1",50,150,"л",1,20,{"$f":"Расч!$AS$25","v":0},60,{"$f":"Расч!$AR$25","v":0},150,"специалист",null,null,"Пехотинцы"]
[null,10,null,null,null,null,null,null,null,null,null,null,null,null,null,null,"Другие_и_наёмники_1"]
[null,11,null,"Против НАЕЗДНИКОВ","Другие_и_наёмники_1"]
[null,12,null,"не выбрано","сила","здоров","л, м, п","значение","наездн.","сила бон.","сила","здор.бон.","здоровье"]
[null,13,null,"грейс**",5510,16530,"м",5,null,{"$f":"Расч!$AS$41","v":0},{"$f":"$E19+$E19*($I19+$J19)%","v":5510},{"$f":"Расч!$AR$41","v":0},{"$f":"$F19+$F19*$L19%","v":16530},"специалист"]
[null,14,null,"рыцарь 6**",1900,5700,"м",1,148,{"$f":"Расч!$AS$25","v":0},4712,{"$f":"Расч!$AR$25","v":0},5700,"специалист"]
[null,15,null,"стервятник 6",940,2820,"л",1,296,{"$f":"Расч!$AS$34","v":0},3722.4,{"$f":"Расч!$AR$34","v":0},2820,"специалист"]
[null,16,null,"охот.на эпич.мон 6**",2030,6090,"м",1,null,{"$f":"Расч!$AS$40","v":0},2030,{"$f":"Расч!$AR$40","v":0},6090,"охотник"]
[null,17,null,"стервятник 5",520,1560,"л",1,197,{"$f":"Расч!$AS$34","v":0},1544.4,{"$f":"Расч!$AR$34","v":0},1560,"специалист"]
[null,18,null,null,null,null,null,null,null,null,null,null,null,null,null,null,null," "]
[null,19,null,"грейс**",5510,16530,"м",5,null,{"$f":"Расч!$AS$41","v":0},{"$f":"$E25+$E25*($I25+$J25)%","v":5510},{"$f":"Расч!$AR$41","v":0},{"$f":"$F25+$F25*$L25%","v":16530},"специалист"]
[null,20,null,"стремительн.стрелок**",1050,3150,"м",1,339,{"$f":"Расч!$AS$8","v":0},4609.5,{"$f":"Расч!$AR$8","v":0},3150,"гвардеец"]
[null,21]
[null,22]
[null,23]
[null,24]
[null,25]
[null,26]
[null,27]
[]
[]
[]
[null,1]
[null,2]
[null,3]
[null,4]
[null,5]
[null,6]
[null,7]
[null,8]
[null,9]
[null,10]
[null,11,null,null,null,null,null,null,null,null,null,null,null,null,null,"Против НАЕЗДНИКОВ"]
[null,12]
[null,13,null,null,null,null,null,null,null,null,null,null,null,null,null,"Другие_и_наёмники_1"]
[null,14]
[null,15]
[null,16]
[null,17]
[null,18]
[null,19]
[null,20]
[null,21]
[null,22]
[null,23]
[null,24]
[null,25]
[null,26]
[null,27]
[null,28]
[]
[]
[]
[]
[null,1]
[null,2]
[null,3]
[null,4]
[null,5]
[null,6]
[null,7]
[null,8]
[null,9]
[null,10]
[null,11]
[null,12,null,null,null,null,null,null,null,null,null,null,null,null,null,"Против ПЕХОТЫ"]
[null,13,null,null,null,null,null,null,null,null,null,null,null,null,null,"Стрелки_против_пех."]
[null,14]
[null,15,null,null,null,null,null,null,null,null,null,null,null,null,null,"Меню Выбор:","Стрелки_против_пех."]
[null,16,null,null,null,null,null,null,null,null,null,null,null,null,null,null,"Другие_и_наёмники_2"]
[null,17,null,null,null,null,null,null,null,null,null,null,null,null,null,"бокс_стр_пр_пехВ",null,null,"диап:","стр_пр_пехВ"]
[null,18]
[null,19,null,null,null,null,null,null,null,null,null,null,null,null,null,"Стрелки_против_пех.",null,null,"диап:","DtAr!$D$63:$D$81"]
[null,20,null,null,null,null,null,null,null,null,null,null,null,null,null,"Другие_и_наёмники_2",null,null,"диап:","DtAr!$D$86:$D$99"]
[null,21]
[null,null,null,null,null,null,null,null,null,null,null,null,null,null,null,"бокс_стр_пр_пех1",null,null,"2 3 4 5"]
[]
[null,1]
[null,2]
[null,3]
[null,4]
[null,5]
[null,6]
[null,7]
[null,8]
[null,9]
[null,10]
[null,11]
[null,12]
[null,13]
[null,14]
[null,15]
[null,16]
[]
[]
[]
[null,1]
[null,2,null,null,null,null,null,null,null,null,null,null,null,null,null,"Против ПЕХОТЫ"]
[null,3,null,null,null,null,null,null,null,null,null,null,null,null,null,"Другие_и_наёмники_2"]
[null,4,null,null,null,null,null,null,null,null,null,null,null,null,null,"диап:","Другие_и_наёмники_2"]
[null,5]
[null,6]
[null,7]
[null,8]
[null,9]
[null,10]
[null,11]
[null,12]
[null,13]
[null,14]
[null,15]
[null,16]
[null,17]
[null,18]
[null,19]
[null,20]
[null,21]
[null,22]
[]
[]
[]
[]
[null,1,null,null,null,null,null,null,null,null,null,null,null,null,null,"Против СТРЕЛКОВ"]
[null,2,null,null,null,null,null,null,null,null,null,null,null,null,null,"Наездники"]
[null,3]
[null,4,null,null,null,null,null,null,null,null,null,null,null,null,null,"Меню Выбор:","Наездники"]
[null,5,null,null,null,null,null,null,null,null,null,null,null,null,null,null,"Другие_и_наёмники_3"]
[null,6,null,null,null,null,null,null,null,null,null,null,null,null,null,"бокс_наездВ",null,null,"диап:","наездВ"]
[null,7,null,null,null,null,null,null,null,null,null,null,null,null,null,"Наездники",null,null,"диап:","DtAr!$D$105:$D$126"]
[null,8,null,null,null,null,null,null,null,null,null,null,null,null,null,"Другие_и_наёмники_3",null,null,"диап:","DtAr!$D$131:$D$143"]
[null,9]
[null,10,null,null,null,null,null,null,null,null,null,null,null,null,null,"бокс_наезд1",null,null,"2 3 4 5"]
[null,11]
[null,12]
[null,13]
[null,14]
[null,15]
[null,16]
[]
[]
[]
[]
[]
[null,1]
[null,2]
[null,3]
[null,4]
[null,5]
[null,6]
[null,7]
[null,8]
[null,9]
[null,10]
[null,11]
[null,12,null,null,null,null,null,null,null,null,null,null,null,null,null,"Против СТРЕЛКОВ"]
[null,13,null,null,null,null,null,null,null,null,null,null,null,null,null,"Другие_и_наёмники_3"]
[null,14]
[null,15]
[null,16]
[null,17]
[null,18]
[null,19]
[null,20]
[null,21]
[]
[]
[null,1]
[null,2]
[null,3]
[null,4]
[null,5]
[null,6]
[null,7]
[null,8]
[null,9]
[null,10]
[null,11]
[null,12]
[null,13]
[]
[]
[]
[null,null,null,null,null,null,null,null,null,null,null,null,null,null,null,"Против ЛЕТАЮЩИХ"]
[null,null,null,null,null,null,null,null,null,null,null,null,null,null,null,"Стрелки_против_лет."]
[]
[null,null,null,null,null,null,null,null,null,null,null,null,null,null,null,"Меню Выбор:","Стрелки_против_лет."]
[null,null,null,null,null,null,null,null,null,null,null,null,null,null,null,null,"Другие_и_наёмники_4"]
[null,null,null,null,null,null,null,null,null,null,null,null,null,null,null,"бокс_стр_пр_летВ",null,null,"диап:","стр_пр_летВ"]
[null,null,null,null,null,null,null,null,null,null,null,null,null,null,null,"Стрелки_против_лет.",null,null,"диап:","DtAr!$D$147:$D$167"]
[null,null,null,null,null,null,null,null,null,null,null,null,null,null,null,"Другие_и_наёмники_4",null,null,"диап:","DtAr!$D$172:$D$179"]
[]
[null,null,null,null,null,null,null,null,null,null,null,null,null,null,null,"бокс_стр_пр_лет1",null,null,"2 3 4 5"]
[]
[]
[]
[]
[]
[]
[]
[]
[]
[]
[]
[]
[]
[]
[]
[]
[]
[]
[]
[]
[]
[null,null,null,null,null,null,null,null,null,null,null,null,null,null,null,"Против ЛЕТАЮЩИХ"]
[null,null,null,null,null,null,null,null,null,null,null,null,null,null,null,"Другие_и_наёмники_4"]

{"sheet":"Расч","index":1,"n_rows":137,"n_cols":47,"rows_kept":137,"cut":false,"hidden":false,"merged":[[1,23,1,24],[2,23,2,24],[1,1,1,5],[1,16,1,17],[2,16,2,17],[1,18,1,20],[2,18,2,20],[1,21,1,22],[2,21,2,22],[2,1,2,4],[0,39,1,44],[3,31,5,37],[11,35,11,37],[11,32,11,34],[6,32,6,34],[6,35,6,37],[5,41,5,42],[5,43,5,44],[7,35,7,37],[3,39,4,44],[7,39,13,39],[5,39,6,40],[3,13,5,13],[3,12,5,12],[6,9,11,9],[3,9,5,11],[6,10,6,11],[3,20,3,22],[4,22,5,22],[4,21,5,21],[4,20,5,20],[3,17,3,19],[17,30,20,37],[7,1,7,2],[5,1,5,2],[14,2,14,3],[13,2,13,3],[12,2,12,3],[11,2,11,3],[3,25,5,25],[3,24,5,24],[3,23,5,23],[3,15,5,15],[3,14,5,14],[3,16,5,16],[4,19,5,19],[4,18,5,18],[4,17,5,17],[14,39,21,39],[4,1,4,2],[6,1,6,2],[31,39,38,39],[19,1,19,5],[9,1,10,4],[15,2,15,3],[16,2,16,3],[24,9,29,9],[18,9,23,9],[12,9,17,9],[24,10,24,11],[18,10,18,11],[12,10,12,11],[13,30,15,37],[23,39,30,39]]}
[null,null,null,null,null,null,null,null,null,null,null,null,null,null,null,null,null,null,null,null,null,null,null,null,null,null,null,null,null," ",null,null,null,null,null,null,null,null,null,"Здоровье и сила с учётом отмеченых бонусов считается калькулятором автоматически."]
[]
[null,null,null,null,null,1,null,null,null,null,null,null,null,null,null,null,null,null,{"$f":"D6-D7","v":{"$error":"#N/A"}},null,null,{"$f":"E6-E7","v":{"$error":"#N/A"}},null,{"$f":"F6-F7","v":{"$error":"#N/A"}}]
[null,null,null,null,null,null,null,null,null,null,null,null,null,null,null,null,null,null,null,null,null,null,null,null,null,null,null,null,null,null,null,"Отметьте активные или планируемые для активации бонусы в чек-боксах. В жёлтые поля введите ваши значения.",null,null,null,null,null,null,null,"Введите бонусы силы и здоровья по типам войск из свойств отрядов в \"Журнал\" - \"События\" тестового боя."]
[]
[null,null,null,19754,9877,4938,null,null,null,null,null,null,null,null,null,null,null,null,null,null,null,null,null,null,null,null,null,null,null,null,null,null,null,null,null,null,null,null,null,"%",null,"текущие значения",null,"с учётом бонусов"]
[null,null,null,{"$f":"SUM(U8:U12,U14:U18,U20:U24,U26:U30)","v":{"$error":"#N/A"}},{"$f":"SUM(V8:V12,V14:V18,V20:V24,V26:V30)","v":{"$error":"#N/A"}},{"$f":"SUM(W8:W12,W14:W18,W20:W24,W26:W30)","v":{"$error":"#N/A"}},null,null,null,"Против  наездников","Тип отрядов:",null,"Пехотинцы",null,null,null,null,null,null,null,null,null,null,null,null,null,null,null,null,null,null,"%","здоровье",null,null,"сила",null,null,null,null,null,"здоровье","сила","здоровье","сила",null,"выделенное красным - проверить вид войск и их бонусы"]
[null,null,null,{"$f":"D6-D7","v":{"$error":"#N/A"}},{"$f":"E6-E7","v":{"$error":"#N/A"}},{"$f":"F6-F7","v":{"$error":"#N/A"}},null,null,null,null,5,"мечник 4",null,null,{"$f":"IF($L8=\"не выбрано\",\"не выбрано \",IF(COUNTIF($L$8:$L$30,$L8)>1,\"уже выбрано \",IFERROR($N8*VLOOKUP($L8,БАЗА,8,0),\"\")))","v":0},{"$f":"ROUNDDOWN($N8*$Q8,0)","v":0},{"$f":"IF($L8=\"не выбрано\",0,VLOOKUP($L8,БАЗА,10,0))","v":870},{"$f":"IF(VLOOKUP($L8,БАЗА,4,0)=\"л\",VLOOKUP($L8,БАЗА,5,0),0)","v":1},{"$f":"IF(VLOOKUP($L8,БАЗА,4,0)=\"м\",VLOOKUP($L8,БАЗА,5,0),0)","v":0},{"$f":"IF(VLOOKUP($L8,БАЗА,4,0)=\"п\",VLOOKUP($L8,БАЗА,5,0),0)","v":0},{"$f":"R8*$N8","v":0},{"$f":"S8*$N8","v":0},0,{"$f":"$F$3*$N8","v":0},5,{"$f":"$Y8-$X8","v":5},null,null,null,null,null,"VIP",null,false,7,7,null,null,null,"Стрелки","гвардеец",null,null,{"$f":"$AP8+$AP8*$AG$12%","v":0},{"$f":"$AQ8+$AQ8*$AJ$12%","v":0},null,"лучники, арбалетчик, тяжёлый арбалетчик, чистильщик, горец, стремительный стрелок"]
[null,null,null,null,0,0,null,null,0,null,4,"копейщик 4",null,null,{"$f":"IF($L9=\"не выбрано\",\"не выбрано \",IF(COUNTIF($L$8:$L$30,$L9)>1,\"уже выбрано \",IFERROR($N9*VLOOKUP($L9,БАЗА,8,0),\"\")))","v":0},{"$f":"ROUNDDOWN($N9*$Q9,0)","v":0},{"$f":"IF($L9=\"не выбрано\",0,VLOOKUP($L9,БАЗА,10,0))","v":870},{"$f":"IF(VLOOKUP($L9,БАЗА,4,0)=\"л\",VLOOKUP($L9,БАЗА,5,0),0)","v":1},{"$f":"IF(VLOOKUP($L9,БАЗА,4,0)=\"м\",VLOOKUP($L9,БАЗА,5,0),0)","v":0},{"$f":"IF(VLOOKUP($L9,БАЗА,4,0)=\"п\",VLOOKUP($L9,БАЗА,5,0),0)","v":0},{"$f":"R9*$N9","v":0},0,0,{"$f":"$F$3*$N9","v":0},61,{"$f":"$Y9-$X9","v":61},null,null,null,null,null,"Личные",null,false,25,null,false,25,null,null,"специалист",null,null,0,0,null,"элитн.арбалет, легитимист, охотница, громадина"]
[null,null,null,null,null,null,null,null,null,null,3,"мечник 3",null,null,{"$f":"IF($L10=\"не выбрано\",\"не выбрано \",IF(COUNTIF($L$8:$L$30,$L10)>1,\"уже выбрано \",IFERROR($N10*VLOOKUP($L10,БАЗА,8,0),\"\")))","v":0},0,{"$f":"IF($L10=\"не выбрано\",0,VLOOKUP($L10,БАЗА,10,0))","v":480},{"$f":"IF(VLOOKUP($L10,БАЗА,4,0)=\"л\",VLOOKUP($L10,БАЗА,5,0),0)","v":1},{"$f":"IF(VLOOKUP($L10,БАЗА,4,0)=\"м\",VLOOKUP($L10,БАЗА,5,0),0)","v":0},{"$f":"IF(VLOOKUP($L10,БАЗА,4,0)=\"п\",VLOOKUP($L10,БАЗА,5,0),0)","v":0},0,0,0,{"$f":"$F$3*$N10","v":0},6,6,null,null,null,null,null,"Премиум",null,false,25,null,false,25,null,null,"дракон",null,null,0,0,null,"магический дракон"]
[null,null,null,null,null,null,null,null,null,null,2,"мечник 2",null,null,{"$f":"IF($L11=\"не выбрано\",\"не выбрано \",IF(COUNTIF($L$8:$L$30,$L11)>1,\"уже выбрано \",IFERROR($N11*VLOOKUP($L11,БАЗА,8,0),\"\")))","v":0},0,{"$f":"IF($L11=\"не выбрано\",0,VLOOKUP($L11,БАЗА,10,0))","v":270},{"$f":"IF(VLOOKUP($L11,БАЗА,4,0)=\"л\",VLOOKUP($L11,БАЗА,5,0),0)","v":1},{"$f":"IF(VLOOKUP($L11,БАЗА,4,0)=\"м\",VLOOKUP($L11,БАЗА,5,0),0)","v":0},{"$f":"IF(VLOOKUP($L11,БАЗА,4,0)=\"п\",VLOOKUP($L11,БАЗА,5,0),0)","v":0},{"$f":"R11*$N11","v":0},0,0,{"$f":"$F$3*$N11","v":0},469,469,null,null,null,null,null,"Титулы",null,false,null,null,false,null,null,null,"элементаль",null,null,0,0,null,"водный элементаль"]
[null,null,null,null,null,null,null,null,null,null,1,"мечник 1",null,null,{"$f":"IF($L12=\"не выбрано\",\"не выбрано \",IF(COUNTIF($L$8:$L$30,$L12)>1,\"уже выбрано \",IFERROR($N12*VLOOKUP($L12,БАЗА,8,0),\"\")))","v":0},0,{"$f":"IF($L12=\"не выбрано\",0,VLOOKUP($L12,БАЗА,10,0))","v":150},{"$f":"IF(VLOOKUP($L12,БАЗА,4,0)=\"л\",VLOOKUP($L12,БАЗА,5,0),0)","v":1},{"$f":"IF(VLOOKUP($L12,БАЗА,4,0)=\"м\",VLOOKUP($L12,БАЗА,5,0),0)","v":0},{"$f":"IF(VLOOKUP($L12,БАЗА,4,0)=\"п\",VLOOKUP($L12,БАЗА,5,0),0)","v":0},0,0,0,{"$f":"$F$3*$N12","v":0},13099,13099,null,null,null,null,null,"Итого %",{"$f":"IF(AH8=TRUE,+AI8,0)+IF(AH9=TRUE,+AI9,0)+IF(AH10=TRUE,+AI10,0)+IF(AH11=TRUE,+AI11,0)","v":0},null,null,{"$f":"IF(AH8=TRUE,+AJ8,0)+IF(AK9=TRUE,+AL9,0)+IF(AK10=TRUE,+AL10,0)+IF(AK11=TRUE,+AL11,0)","v":0},null,null,null,null,"гигант",null,null,0,0,null,"колосс разрушитель"]
[null,null,null,null,2000,null,null,null,null,"Против  пехоты","Тип отрядов:",null,"Стрелки_против_пех.",null,null,null,null,null,null,null,null,null,null,null,null,null,null,null,null,null,null,null,null,null,null,null,null,null,null,null,"зверь",null,null,0,0,null,"медуза-горгона, трикстер"]
[null,null,null,null,8000,null,null,null,null,null,5,"магический дракон 4",null,null,{"$f":"IF($L14=\"не выбрано\",\"не выбрано \",IF(COUNTIF($L$8:$L$30,$L14)>1,\"уже выбрано \",IFERROR($N14*VLOOKUP($L14,БАЗА,8,0),\"\")))","v":""},{"$error":"#N/A"},{"$f":"IF($L14=\"не выбрано\",0,VLOOKUP($L14,БАЗА,10,0))","v":{"$error":"#N/A"}},{"$f":"IF(VLOOKUP($L14,БАЗА,4,0)=\"л\",VLOOKUP($L14,БАЗА,5,0),0)","v":{"$error":"#N/A"}},{"$f":"IF(VLOOKUP($L14,БАЗА,4,0)=\"м\",VLOOKUP($L14,БАЗА,5,0),0)","v":{"$error":"#N/A"}},{"$f":"IF(VLOOKUP($L14,БАЗА,4,0)=\"п\",VLOOKUP($L14,БАЗА,5,0),0)","v":{"$error":"#N/A"}},{"$error":"#N/A"},{"$f":"S14*$N14","v":{"$error":"#N/A"}},{"$error":"#N/A"},{"$f":"$F$3*$N14","v":0},128,{"$f":"$Y14-$X14","v":128},null,null,null,null,"Если у вас на момент тест-боя что-либо из бонусов активированно, то оставьте соответствующие чек-боксы пустыми, т.е. \"галку\" ставить не нужно.",null,null,null,null,null,null,null,null,null,"нежить",null,null,0,0,null,"вечный канонир"]
[null,null,null,null,12000,null,null,null,null,null,4,"арбалетчик 6**",null,null,{"$f":"IF($L15=\"не выбрано\",\"не выбрано \",IF(COUNTIF($L$8:$L$30,$L15)>1,\"уже выбрано \",IFERROR($N15*VLOOKUP($L15,БАЗА,8,0),\"\")))","v":""},{"$error":"#N/A"},{"$f":"IF($L15=\"не выбрано\",0,VLOOKUP($L15,БАЗА,10,0))","v":{"$error":"#N/A"}},{"$f":"IF(VLOOKUP($L15,БАЗА,4,0)=\"л\",VLOOKUP($L15,БАЗА,5,0),0)","v":{"$error":"#N/A"}},{"$f":"IF(VLOOKUP($L15,БАЗА,4,0)=\"м\",VLOOKUP($L15,БАЗА,5,0),0)","v":{"$error":"#N/A"}},{"$f":"IF(VLOOKUP($L15,БАЗА,4,0)=\"п\",VLOOKUP($L15,БАЗА,5,0),0)","v":{"$error":"#N/A"}},{"$f":"R15*$N15","v":{"$error":"#N/A"}},{"$error":"#N/A"},{"$error":"#N/A"},{"$f":"$F$3*$N15","v":0},332,{"$f":"$Y15-$X15","v":332},null,null,null,null,null,null,null,null,null,null,null,null,null,"Наездники","гвардеец",null,null,{"$f":"$AP15+$AP15*$AG$12%","v":0},{"$f":"$AQ15+$AQ15*$AJ$12%","v":0},null,"всадники, колесница, конный рыцарь, сокрушитель, бедуин"]
[null,null,null,null,16000,null,null,null,null,null,3,"охотница 6**",null,null,{"$f":"IF($L16=\"не выбрано\",\"не выбрано \",IF(COUNTIF($L$8:$L$30,$L16)>1,\"уже выбрано \",IFERROR($N16*VLOOKUP($L16,БАЗА,8,0),\"\")))","v":""},{"$error":"#N/A"},{"$f":"IF($L16=\"не выбрано\",0,VLOOKUP($L16,БАЗА,10,0))","v":{"$error":"#N/A"}},{"$f":"IF(VLOOKUP($L16,БАЗА,4,0)=\"л\",VLOOKUP($L16,БАЗА,5,0),0)","v":{"$error":"#N/A"}},{"$f":"IF(VLOOKUP($L16,БАЗА,4,0)=\"м\",VLOOKUP($L16,БАЗА,5,0),0)","v":{"$error":"#N/A"}},{"$f":"IF(VLOOKUP($L16,БАЗА,4,0)=\"п\",VLOOKUP($L16,БАЗА,5,0),0)","v":{"$error":"#N/A"}},{"$error":"#N/A"},{"$error":"#N/A"},{"$error":"#N/A"},{"$f":"$F$3*$N16","v":0},291,291,null,null,null,null,null,null,null,null,null,null,null,null,null,null,"специалист",null,null,{"$f":"$AP16+$AP16*$AG$12%","v":0},{"$f":"$AQ16+$AQ16*$AJ$12%","v":0},null,"всадн на льве, белогриф, наездн. на носороге, буканьер"]
[null,null,null,null,25000,null,null,null,null,null,2,"лучник 2",null,null,{"$f":"IF($L17=\"не выбрано\",\"не выбрано \",IF(COUNTIF($L$8:$L$30,$L17)>1,\"уже выбрано \",IFERROR($N17*VLOOKUP($L17,БАЗА,8,0),\"\")))","v":""},{"$error":"#N/A"},{"$f":"IF($L17=\"не выбрано\",0,VLOOKUP($L17,БАЗА,10,0))","v":{"$error":"#N/A"}},{"$f":"IF(VLOOKUP($L17,БАЗА,4,0)=\"л\",VLOOKUP($L17,БАЗА,5,0),0)","v":{"$error":"#N/A"}},{"$f":"IF(VLOOKUP($L17,БАЗА,4,0)=\"м\",VLOOKUP($L17,БАЗА,5,0),0)","v":{"$error":"#N/A"}},{"$f":"IF(VLOOKUP($L17,БАЗА,4,0)=\"п\",VLOOKUP($L17,БАЗА,5,0),0)","v":{"$error":"#N/A"}},{"$error":"#N/A"},{"$error":"#N/A"},{"$error":"#N/A"},{"$f":"$F$3*$N17","v":0},4000,4000,null,null,null,null,null,null,null,null,null,null,null,null,null,null,"дракон",null,null,{"$f":"$AP17+$AP17*$AG$12%","v":0},{"$f":"$AQ17+$AQ17*$AJ$12%","v":0},null,"пустынный покоритель, опустошитель"]
[null,null,null,null,null,null,null,null,null,null,1,"лучник 1",null,null,{"$f":"IF($L18=\"не выбрано\",\"не выбрано \",IF(COUNTIF($L$8:$L$30,$L18)>1,\"уже выбрано \",IFERROR($N18*VLOOKUP($L18,БАЗА,8,0),\"\")))","v":""},{"$error":"#N/A"},{"$f":"IF($L18=\"не выбрано\",0,VLOOKUP($L18,БАЗА,10,0))","v":{"$error":"#N/A"}},{"$f":"IF(VLOOKUP($L18,БАЗА,4,0)=\"л\",VLOOKUP($L18,БАЗА,5,0),0)","v":{"$error":"#N/A"}},{"$f":"IF(VLOOKUP($L18,БАЗА,4,0)=\"м\",VLOOKUP($L18,БАЗА,5,0),0)","v":{"$error":"#N/A"}},{"$f":"IF(VLOOKUP($L18,БАЗА,4,0)=\"п\",VLOOKUP($L18,БАЗА,5,0),0)","v":{"$error":"#N/A"}},{"$error":"#N/A"},{"$error":"#N/A"},{"$error":"#N/A"},{"$f":"$F$3*$N18","v":0},8000,8000,null,null,null,null,"Без ввода бонусов, а это бонусы от ГГ, капитанов, экипировки, Зала Славы, в расчётах будут приняты только базовые значения силы, здоровья и значения бонуса противовида.",null,null,null,null,null,null,null,null,null,"элементаль",null,null,{"$f":"$AP18+$AP18*$AG$12%","v":0},{"$f":"$AQ18+$AQ18*$AJ$12%","v":0},null,"пылающий кентавр"]
[null,null,null,null,null,null,null,null,null,"Против  стрелков","Тип отрядов:",null,"Наездники",null,null,null,null,null,null,null,null,null,null,null,null,null,null,null,null,null,null,null,null,null,null,null,null,null,null,null,"гигант",null,null,{"$f":"$AP19+$AP19*$AG$12%","v":0},{"$f":"$AQ19+$AQ19*$AJ$12%","v":0},null,"наездник на тролле"]
[null,null,null,null,null,null,null,null,null,null,5,"хранитель**",null,null,{"$f":"IF($L20=\"не выбрано\",\"не выбрано \",IF(COUNTIF($L$8:$L$30,$L20)>1,\"уже выбрано \",IFERROR($N20*VLOOKUP($L20,БАЗА,8,0),\"\")))","v":""},{"$error":"#N/A"},{"$f":"IF($L20=\"не выбрано\",0,VLOOKUP($L20,БАЗА,10,0))","v":{"$error":"#N/A"}},{"$f":"IF(VLOOKUP($L20,БАЗА,4,0)=\"л\",VLOOKUP($L20,БАЗА,5,0),0)","v":{"$error":"#N/A"}},{"$f":"IF(VLOOKUP($L20,БАЗА,4,0)=\"м\",VLOOKUP($L20,БАЗА,5,0),0)","v":{"$error":"#N/A"}},{"$f":"IF(VLOOKUP($L20,БАЗА,4,0)=\"п\",VLOOKUP($L20,БАЗА,5,0),0)","v":{"$error":"#N/A"}},{"$error":"#N/A"},{"$f":"S20*$N20","v":{"$error":"#N/A"}},{"$error":"#N/A"},{"$f":"$F$3*$N20","v":0},1,{"$f":"$Y20-$X20","v":1},null,null,null,null,null,null,null,null,null,null,null,null,null,null,"зверь",null,null,{"$f":"$AP20+$AP20*$AG$12%","v":0},{"$f":"$AQ20+$AQ20*$AJ$12%","v":0},null,"боевой кабан, древнее чудовище"]
[null,null,null,null,null,null,null,null,null,null,4,"чудище**",null,null,{"$f":"IF($L21=\"не выбрано\",\"не выбрано \",IF(COUNTIF($L$8:$L$30,$L21)>1,\"уже выбрано \",IFERROR($N21*VLOOKUP($L21,БАЗА,8,0),\"\")))","v":""},{"$error":"#N/A"},{"$f":"IF($L21=\"не выбрано\",0,VLOOKUP($L21,БАЗА,10,0))","v":{"$error":"#N/A"}},{"$f":"IF(VLOOKUP($L21,БАЗА,4,0)=\"л\",VLOOKUP($L21,БАЗА,5,0),0)","v":{"$error":"#N/A"}},{"$f":"IF(VLOOKUP($L21,БАЗА,4,0)=\"м\",VLOOKUP($L21,БАЗА,5,0),0)","v":{"$error":"#N/A"}},{"$f":"IF(VLOOKUP($L21,БАЗА,4,0)=\"п\",VLOOKUP($L21,БАЗА,5,0),0)","v":{"$error":"#N/A"}},{"$f":"R21*$N21","v":{"$error":"#N/A"}},{"$error":"#N/A"},{"$error":"#N/A"},{"$f":"$F$3*$N21","v":0},12,{"$f":"$Y21-$X21","v":12},null,null,null,null,null,null,null,null,null,null,null,null,null,null,"нежить",null,null,{"$f":"$AP21+$AP21*$AG$12%","v":0},{"$f":"$AQ21+$AQ21*$AJ$12%","v":0},null,"колесница смерти"]
[null,null,null,null,null,null,null,null,null,null,3,"буканьер 2**",null,null,{"$f":"IF($L22=\"не выбрано\",\"не выбрано \",IF(COUNTIF($L$8:$L$30,$L22)>1,\"уже выбрано \",IFERROR($N22*VLOOKUP($L22,БАЗА,8,0),\"\")))","v":""},{"$error":"#N/A"},{"$f":"IF($L22=\"не выбрано\",0,VLOOKUP($L22,БАЗА,10,0))","v":{"$error":"#N/A"}},{"$f":"IF(VLOOKUP($L22,БАЗА,4,0)=\"л\",VLOOKUP($L22,БАЗА,5,0),0)","v":{"$error":"#N/A"}},{"$f":"IF(VLOOKUP($L22,БАЗА,4,0)=\"м\",VLOOKUP($L22,БАЗА,5,0),0)","v":{"$error":"#N/A"}},{"$f":"IF(VLOOKUP($L22,БАЗА,4,0)=\"п\",VLOOKUP($L22,БАЗА,5,0),0)","v":{"$error":"#N/A"}},{"$error":"#N/A"},{"$error":"#N/A"},{"$error":"#N/A"},{"$f":"$F$3*$N22","v":0},6,6,null,null,null,null,null,null,null,null,null,null,null,null,null,null,"эльфы",null,null,0,0,null,"хранитель"]
[null,null,null,null,null,null,null,null,null,null,2,"грейс**",null,null,{"$f":"IF($L23=\"не выбрано\",\"не выбрано \",IF(COUNTIF($L$8:$L$30,$L23)>1,\"уже выбрано \",IFERROR($N23*VLOOKUP($L23,БАЗА,8,0),\"\")))","v":0},0,{"$f":"IF($L23=\"не выбрано\",0,VLOOKUP($L23,БАЗА,10,0))","v":16530},{"$f":"IF(VLOOKUP($L23,БАЗА,4,0)=\"л\",VLOOKUP($L23,БАЗА,5,0),0)","v":0},{"$f":"IF(VLOOKUP($L23,БАЗА,4,0)=\"м\",VLOOKUP($L23,БАЗА,5,0),0)","v":5},{"$f":"IF(VLOOKUP($L23,БАЗА,4,0)=\"п\",VLOOKUP($L23,БАЗА,5,0),0)","v":0},0,0,0,{"$f":"$F$3*$N23","v":0},167,167,null,null,null,null,null,null,null,null,null,null,null,null,null,null,"варвар",null,null,0,0,null,"всадник на скорпионе"]
[null,null,null,null,null,null,null,null,null,null,1,"наезд. на носороге 6**",null,null,{"$f":"IF($L24=\"не выбрано\",\"не выбрано \",IF(COUNTIF($L$8:$L$30,$L24)>1,\"уже выбрано \",IFERROR($N24*VLOOKUP($L24,БАЗА,8,0),\"\")))","v":""},{"$error":"#N/A"},{"$f":"IF($L24=\"не выбрано\",0,VLOOKUP($L24,БАЗА,10,0))","v":{"$error":"#N/A"}},{"$f":"IF(VLOOKUP($L24,БАЗА,4,0)=\"л\",VLOOKUP($L24,БАЗА,5,0),0)","v":{"$error":"#N/A"}},{"$f":"IF(VLOOKUP($L24,БАЗА,4,0)=\"м\",VLOOKUP($L24,БАЗА,5,0),0)","v":{"$error":"#N/A"}},{"$f":"IF(VLOOKUP($L24,БАЗА,4,0)=\"п\",VLOOKUP($L24,БАЗА,5,0),0)","v":{"$error":"#N/A"}},{"$error":"#N/A"},{"$error":"#N/A"},{"$error":"#N/A"},{"$f":"$F$3*$N24","v":0},148,148,null,null,null,null,null,null,null,null,null,null,null,null,null,"Пехотинцы","гвардеец",null,null,0,0,null,"копейщики, тяжёлый алебардист, каратель, легионер, ратник"]
[null,null,null,null,null,null,null,null,null,"Против  летающих","Тип отрядов:",null,"Стрелки_против_лет.",null,null,null,null,null,null,null,null,null,null,null,null,null,null,null,null,null,null,null,null,null,null,null,null,null,null,null,"специалист",null,null,0,0,null,"мечник, тяжёлый рыцарь, дуэлист, дрейк, рыцарь"]
[null,null,null,null,null,null,null,null,null,null,5,"легитимист 2",null,null,{"$f":"IF($L26=\"не выбрано\",\"не выбрано \",IF(COUNTIF($L$8:$L$30,$L26)>1,\"уже выбрано \",IFERROR($N26*VLOOKUP($L26,БАЗА,8,0),\"\")))","v":""},{"$error":"#N/A"},{"$f":"IF($L26=\"не выбрано\",0,VLOOKUP($L26,БАЗА,10,0))","v":{"$error":"#N/A"}},{"$f":"IF(VLOOKUP($L26,БАЗА,4,0)=\"л\",VLOOKUP($L26,БАЗА,5,0),0)","v":{"$error":"#N/A"}},{"$f":"IF(VLOOKUP($L26,БАЗА,4,0)=\"м\",VLOOKUP($L26,БАЗА,5,0),0)","v":{"$error":"#N/A"}},{"$f":"IF(VLOOKUP($L26,БАЗА,4,0)=\"п\",VLOOKUP($L26,БАЗА,5,0),0)","v":{"$error":"#N/A"}},{"$error":"#N/A"},{"$f":"S26*$N26","v":{"$error":"#N/A"}},{"$error":"#N/A"},{"$f":"$F$3*$N26","v":0},327,{"$f":"$Y26-$X26","v":327},null,null,null,null,"стремительный стрелок 5",null,null,null,null,null,null,null,null,null,"дракон",null,null,{"$f":"$AP26+$AP26*$AG$12%","v":0},{"$f":"$AQ26+$AQ26*$AJ$12%","v":0},null,"кристаллический дракон, "]
[null,null,null,null,null,null,null,null,null,null,4,"элитн.арбалетчик 7",null,null,{"$f":"IF($L27=\"не выбрано\",\"не выбрано \",IF(COUNTIF($L$8:$L$30,$L27)>1,\"уже выбрано \",IFERROR($N27*VLOOKUP($L27,БАЗА,8,0),\"\")))","v":""},{"$error":"#N/A"},{"$f":"IF($L27=\"не выбрано\",0,VLOOKUP($L27,БАЗА,10,0))","v":{"$error":"#N/A"}},{"$f":"IF(VLOOKUP($L27,БАЗА,4,0)=\"л\",VLOOKUP($L27,БАЗА,5,0),0)","v":{"$error":"#N/A"}},{"$f":"IF(VLOOKUP($L27,БАЗА,4,0)=\"м\",VLOOKUP($L27,БАЗА,5,0),0)","v":{"$error":"#N/A"}},{"$f":"IF(VLOOKUP($L27,БАЗА,4,0)=\"п\",VLOOKUP($L27,БАЗА,5,0),0)","v":{"$error":"#N/A"}},{"$f":"R27*$N27","v":{"$error":"#N/A"}},{"$error":"#N/A"},{"$error":"#N/A"},{"$f":"$F$3*$N27","v":0},193,{"$f":"$Y27-$X27","v":193},null,null,null,null,"песчаный червь 7",null,null,null,null,null,null,null,null,null,"элементаль",null,null,0,0,null,"рубиновый голем, повелитель ветра, проклятый дендроид, энт"]
[null,null,null,null,null,null,null,null,null,null,3,"лучник 5",null,null,{"$f":"IF($L28=\"не выбрано\",\"не выбрано \",IF(COUNTIF($L$8:$L$30,$L28)>1,\"уже выбрано \",IFERROR($N28*VLOOKUP($L28,БАЗА,8,0),\"\")))","v":""},{"$error":"#N/A"},{"$f":"IF($L28=\"не выбрано\",0,VLOOKUP($L28,БАЗА,10,0))","v":{"$error":"#N/A"}},{"$f":"IF(VLOOKUP($L28,БАЗА,4,0)=\"л\",VLOOKUP($L28,БАЗА,5,0),0)","v":{"$error":"#N/A"}},{"$f":"IF(VLOOKUP($L28,БАЗА,4,0)=\"м\",VLOOKUP($L28,БАЗА,5,0),0)","v":{"$error":"#N/A"}},{"$f":"IF(VLOOKUP($L28,БАЗА,4,0)=\"п\",VLOOKUP($L28,БАЗА,5,0),0)","v":{"$error":"#N/A"}},{"$f":"R28*$N28","v":{"$error":"#N/A"}},{"$error":"#N/A"},{"$error":"#N/A"},{"$f":"$F$3*$N28","v":0},120,120,null,null,null,null,null,null,null,null,null,null,null,null,null,null,"гигант",null,null,0,0,null,"архидемон, многорукий страж, двухголовый огр, кракен"]
[null,null,null,null,null,null,null,null,null,null,2,"лучник 4",null,null,{"$f":"IF($L29=\"не выбрано\",\"не выбрано \",IF(COUNTIF($L$8:$L$30,$L29)>1,\"уже выбрано \",IFERROR($N29*VLOOKUP($L29,БАЗА,8,0),\"\")))","v":""},{"$error":"#N/A"},{"$f":"IF($L29=\"не выбрано\",0,VLOOKUP($L29,БАЗА,10,0))","v":{"$error":"#N/A"}},{"$f":"IF(VLOOKUP($L29,БАЗА,4,0)=\"л\",VLOOKUP($L29,БАЗА,5,0),0)","v":{"$error":"#N/A"}},{"$f":"IF(VLOOKUP($L29,БАЗА,4,0)=\"м\",VLOOKUP($L29,БАЗА,5,0),0)","v":{"$error":"#N/A"}},{"$f":"IF(VLOOKUP($L29,БАЗА,4,0)=\"п\",VLOOKUP($L29,БАЗА,5,0),0)","v":{"$error":"#N/A"}},{"$f":"R29*$N29","v":{"$error":"#N/A"}},{"$error":"#N/A"},{"$error":"#N/A"},{"$f":"$F$3*$N29","v":0},21287,21287,null,null,null,null,null,null,null,null,null,null,null,null,null,null,"зверь",null,null,0,0,null,"повелитель джунглей, чудище, медведь"]
[null,null,null,null,null,null,null,null,null,null,1,"лучник 3",null,null,{"$f":"IF($L30=\"не выбрано\",\"не выбрано \",IF(COUNTIF($L$8:$L$30,$L30)>1,\"уже выбрано \",IFERROR($N30*VLOOKUP($L30,БАЗА,8,0),\"\")))","v":""},{"$error":"#N/A"},{"$f":"IF($L30=\"не выбрано\",0,VLOOKUP($L30,БАЗА,10,0))","v":{"$error":"#N/A"}},{"$f":"IF(VLOOKUP($L30,БАЗА,4,0)=\"л\",VLOOKUP($L30,БАЗА,5,0),0)","v":{"$error":"#N/A"}},{"$f":"IF(VLOOKUP($L30,БАЗА,4,0)=\"м\",VLOOKUP($L30,БАЗА,5,0),0)","v":{"$error":"#N/A"}},{"$f":"IF(VLOOKUP($L30,БАЗА,4,0)=\"п\",VLOOKUP($L30,БАЗА,5,0),0)","v":{"$error":"#N/A"}},{"$f":"R30*$N30","v":{"$error":"#N/A"}},{"$error":"#N/A"},{"$error":"#N/A"},{"$f":"$F$3*$N30","v":0},5967,5967,null,null,null,null,null,null,null,null,null,null,null,null,null,null,"нежить",null,null,0,0,null,"костяной голем"]
[null,null,null,null,null,null,null,null,null,null,null,null,null,null,null,null,null,null,null,null,null,null,null,null,null,null,null,null,null,null,null,null,null,null,null,null,null,null,null,null,"демон",null,null,0,0,null,"демоническая саламандра"]
[null,null,null,null,null,null,null,null,null,null,null,null,null,null,null,null,null,null,null,null,null,null,null,null,null,null,null,null,null,null,null,null,null,null,null,null,null,null,null,"Летающие","гвардеец",null,null,{"$f":"$AP32+$AP32*$AG$12%","v":0},{"$f":"$AQ32+$AQ32*$AJ$12%","v":0},null,"ворон"]
[null,null,null,null,null,null,null,null,null,null,null,null,null,null,null,null,null,null,null,null,null,null,null,null,null,null,null,null,null,null,null,null,null,null,null,null,null,null,null,null,"гвардеец, зверь",null,null,0,0,null,"боевой грифон, сфинкс, неукрощённый"]
[null,null,null,null,null,null,null,null,null,null,null,null,null,null,null,null,null,null,null,null,null,null,null,null,null,null,null,null,null,null,null,null,null,null,null,null,null,null,null,null,"специалист",null,null,0,0,null,"стервятник"]
[null,null,null,null,null,null,null,null,null,null,null,null,null,null,null,null,null,null,null,null,null,null,null,null,null,null,null,null,null,null,null,null,null,null,null,null,null,null,null,null,"специалист,зверь",null,null,0,0,null,"шеду, королевский лев, яго"]
[null,null,null,null,null,null,null,null,null,null,null,null,null,null,null,null,null,null,null,null,null,null,null,null,null,null,null,null,null,null,null,null,null,null,null,null,null,null,null,null,"дракон",null,null,0,0,null,"изумрудный дракон, чёрный дракон, виверна"]
[null,null,null,null,null,null,null,null,null,null,null,null,null,null,null,null,null,null,null,null,null,null,null,null,null,null,null,null,null,null,null,null,null,null,null,null,null,null,null,null,"элементаль",null,null,0,0,null,"ледяной Феникс, огненный Феникс, ифрит"]
[null,null,null,null,null,null,null,null,null,null,null,null,null,null,null,null,null,null,null,null,null,null,null,null,null,null,null,null,null,null,null,null,null,null,null,null,null,null,null,null,"гигант",null,null,0,0,null,"каменная горгулья"]
[null,null,null,null,null,null,null,null,null,null,null,null,null,null,null,null,null,null,null,null,null,null,null,null,null,null,null,null,null,null,null,null,null,null,null,null,null,null,null,null,"зверь",null,null,0,0,null,"жуткая мнтикора"]
[null,null,null,null,null,null,null,null,null,null,null,null,null,null,null,null,null,null,null,null,null,null,null,null,null,null,null,null,null,null,null,null,null,null,null,null,null,null,null,"Охотник","гвард,на эпич мон",null,null,{"$f":"$AP40+$AP40*$AG$12%","v":0},{"$f":"$AQ40+$AQ40*$AJ$12%","v":0},null,"охотн. на эпич. монстров, старший охотн. на эпич. монстров"]
[null,null,null,null,null,null,null,null,null,null,null,null,null,null,null,null,null,null,null,null,null,null,null,null,null,null,null,null,null,null,null,null,null,null,null,null,null,null,null,"Разведчик","специалист",null,null,{"$f":"$AP41+$AP41*$AG$12%","v":0},{"$f":"$AQ41+$AQ41*$AJ$12%","v":0},null,"грейс"]
[]
[]
[]
[]
[]
[]
[]
[]
[]
[]
[]
[]
[]
[]
[]
[]
[]
[]
[]
[]
[]
[]
[null,null,null,null,null,null,null,null,null,null,null,null,null,null,null,null,null,null,null,null,"диап:","стр_пр_пех"]
[]
[]
[]
[]
[]
[]
[]
[]
[]
[]
[]
[]
[]
[]
[]
[]
[]
[]
[]
[]
[]
[]
[]
[]
[]
[]
[]
[]
[]
[]
[]
[]
[]
[]
[]
[]
[]
[]
[]
[]
[]
[]
[]
[]
[]
[]
[]
[]
[]
[]
[]
[]
[]
[]
[]
[]
[]
[]
[]
[]
[]
[]
[]
[]
[]
[]
[]
[]
[]
[]
[]
[]
[null,null,null,null,null,null,null,null,55]